[Event "1st Gujarat GM Open 2018"]
[Site "Ahmedabad"]
[Date "2018.10.07"]
[Round "4"]
[White "Aaryan Varshney"]
[Black "Shahil Dey"]
[Result "1/2-1/2"]
[ECO "D47"]
[WhiteElo "2286"]
[BlackElo "2063"]
[Annotator "NA"]
[PlyCount "93"]
[EventDate "2018.10.05"]
[EventType "swiss"]
[EventCountry "IND"]
[SourceTitle "playchess.com"]
[Source "ChessBase"]
[SourceQuality "1"]
[TimeControl "5400+30"]

1. d4 {[%emt 0:00:39]} d5 {[%emt 0:00:00]} 2. c4 {[%emt 0:00:07]} c6 {[%emt 0:00:00]} 3. Nf3 {[%emt 0:00:05]} Nf6 {[%emt 0:00:00]} 4. Nc3 {[%emt 0:00:09]} e6 {[%emt 0:00:00]} 5. e3 {[%emt 0:00:18]} Nbd7 {[%emt 0:00:00]} 6. Bd3 {[%emt 0:01:26]} dxc4 {[%emt 0:00:05]} 7. Bxc4 {[%emt 0:00:02]} b5 {[%emt 0:00:10]} 8. Bd3 {[%emt 0:00:04]} Bd6 {[%emt 0:00:06]} 9. O-O {[%emt 0:00:20]} O-O {[%emt 0:00:06]} 10. b3 {[%emt 0:01:39]} Bb7 {[%emt 0:00:38]} 11. Bb2 {[%emt 0:00:22]} a6 {[%emt 0:01:19]} 12. a4 {[%emt 0:07:01]} Rc8 {[%emt 0:02:27]} 13. Rc1 {[%emt 0:03:34]} Qe7 {[%emt 0:00:48]} 14. Qe2 {[%emt 0:00:44]} Rfd8 {[%emt 0:05:40]} 15. Rfd1 {[%emt 0:00:20]} h6 {[%emt 0:05:07]} 16. h3 {[%emt 0:01:14]} e5 {[%emt 0:04:28]} 17. Bb1 {[%emt 0:07:51]} exd4 {[%emt 0:03:56]} 18. Nxd4 {[%emt 0:00:37]} g6 {[%emt 0:00:06]} 19. Nf3 {[%emt 0:02:46]} b4 {[%emt 0:02:45]} 20. Ne4 {[%emt 0:01:59]} Nxe4 {[%emt 0:10:27]} 21. Bxe4 {[%emt 0:00:04]} Nc5 {[%emt 0:09:38]} 22. Bc2 {[%emt 0:00:43]} a5 {[%emt 0:00:20]} 23. Nd4 {[%emt 0:12:43]} Be5 {[%emt 0:02:48]} 24. f4 {[%emt 0:02:09]} Bxd4 {[%emt 0:00:48]} 25. Bxd4 {[%emt 0:08:22]} Ne6 {[%emt 0:00:09]} 26. Be5 {[%emt 0:00:33]} c5 {[%emt 0:05:35]} 27. Qc4 {[%emt 0:03:44]} Qh4 {[%emt 0:05:37]} 28. Be4 {[%emt 0:12:06]} Bc6 29. Bd5 Bxd5 {[%emt 0:01:15]} 30. Qd4 Be4 31. Qxe4 {[%emt 0:01:02]} Ng5 {[%emt 0:00:57]} 32. Qc2 {[%emt 0:08:09]} Qg3 {[%emt 0:01:17]} 33. Rxd8+ {[%emt 0:06:23]} Rxd8 {[%emt 0:00:02]} 34. fxg5 {[%emt 0:00:04]} Qxe3+ {[%emt 0:00:25]} 35. Kh1 {[%emt 0:00:08]} Qxe5 {[%emt 0:00:05]} 36. gxh6 {[%emt 0:01:03]} Kh7 {[%emt 0:01:27]} 37. Qf2 {[%emt 0:09:09]} Rd7 {[%emt 0:03:03]} 38. Qh4 {[%emt 0:01:17]} Rd4 {[%emt 0:03:38]} 39. Qf2 {[%emt 0:00:42]} Rd7 {[%emt 0:00:52]} 40. Qh4 {[%emt 0:00:33]} Qe3 {[%emt 0:04:02]} 41. Re1 {[%emt 0:01:06]} Qxh6 {[%emt 0:01:20]} 42. Qf6 {[%emt 0:02:05]} Qd2 {[%emt 0:00:53]} 43. Qh4+ {[%emt 0:01:55]} Kg7 {[%emt 0:03:19]} 44. Re8 {[%emt 0:00:20]} Qd1+ {[%emt 0:02:54]} 45. Kh2 {[%emt 0:00:05]} Qd6+ {[%emt 0:00:06]} 46. Kh1 {[%emt 0:00:22]} Qd1+ {[%emt 0:00:08]} 47. Kh2 {[%emt 0:00:01]} 1/2-1/2

[Event "1st Gujarat GM Open 2018"]
[Site "Ahmedabad"]
[Date "2018.10.07"]
[Round "4"]
[White "Kunal, M.."]
[Black "Gukesh D"]
[Result "0-1"]
[ECO "A05"]
[WhiteElo "2270"]
[BlackElo "2456"]
[Annotator "ChessBase"]
[PlyCount "64"]
[EventDate "2018.10.05"]
[EventType "swiss"]
[EventCountry "IND"]
[SourceTitle "playchess.com"]
[Source "ChessBase"]
[SourceQuality "1"]
[TimeControl "5400+30"]

1. Nf3 {[%emt 0:00:00]} Nf6 {[%emt 0:00:04]} 2. g3 {[%emt 0:00:00]} g6 {[%emt 0:00:06]} 3. b3 {[%emt 0:00:00]} Bg7 {[%emt 0:00:34]} 4. Bb2 {[%emt 0:00:00]} O-O {[%emt 0:00:08]} 5. Bg2 {[%emt 0:00:00]} d6 {[%emt 0:00:34]} 6. d4 {[%emt 0:00:02]} Nbd7 {[%emt 0:00:27]} 7. O-O {[%emt 0:00:41]} Re8 {[%emt 0:00:28]} 8. a4 {[%emt 0:04:38]} c6 {[%emt 0:04:34]} 9. a5 {[%emt 0:09:42]} Qc7 {[%emt 0:00:24]} 10. c4 {[%emt 0:00:08]} e5 {[%emt 0:00:21]} 11. dxe5 {[%emt 0:04:41]} dxe5 {[%emt 0:00:23]} 12. b4 {[%emt 0:00:09]} e4 {[%emt 0:09:19]} 13. Nd4 {[%emt 0:00:05]} e3 {[%emt 0:09:10]} 14. f4 {[%emt 0:00:46]} Ng4 {[%emt 0:10:07]} 15. Qc1 {[%emt 0:03:52]} Ndf6 {[%emt 0:02:34]} 16. a6 {[%emt 0:08:32]} Ne4 {[%emt 0:10:59]} 17. axb7 {[%emt 0:00:34]} Bxb7 {[%emt 0:00:32]} 18. Nb3 {[%emt 0:01:24]} Nd2 {[%emt 0:08:29]} 19. Bxg7 {[%emt 0:14:21]} Nxb3 {[%emt 0:05:16]} 20. Qc2 {[%emt 0:07:22]} Nxa1 {[%emt 0:00:46]} 21. Bxa1 {[%emt 0:01:02]} f6 {[%emt 0:05:38]} 22. Bf3 {[%emt 0:09:01]} Nf2 {[%emt 0:03:17]} 23. c5 {[%emt 0:01:40]} Qf7 {[%emt 0:04:30]} 24. Na3 {[%emt 0:00:19]} Ba6 {[%emt 0:01:12]} 25. Rxf2 {[%emt 0:07:04]} exf2+ {[%emt 0:00:05]} 26. Kxf2 {[%emt 0:00:04]} Rad8 {[%emt 0:01:17]} 27. b5 {[%emt 0:01:25]} cxb5 {[%emt 0:02:47]} 28. Qc3 {[%emt 0:00:07]} b4 {[%emt 0:02:45]} 29. Qxb4 {[%emt 0:00:08]} Qa2 {[%emt 0:00:29]} 30. Qb2 {[%emt 0:06:16]} Qxb2 {[%emt 0:00:21]} 31. Bxb2 {[%emt 0:00:04]} Bxe2 {[%emt 0:01:41]} 32. Bxf6 {[%emt 0:00:42]} Bxf3 {[%emt 0:00:09]} 0-1

[Event "1st Gujarat GM Open 2018"]
[Site "Ahmedabad"]
[Date "2018.10.07"]
[Round "4"]
[White "Pranav Anand"]
[Black "Nikhil Magizhnan"]
[Result "0-1"]
[ECO "E46"]
[WhiteElo "2269"]
[BlackElo "2056"]
[Annotator "NA"]
[PlyCount "50"]
[EventDate "2018.10.05"]
[EventType "swiss"]
[EventCountry "IND"]
[SourceTitle "playchess.com"]
[Source "ChessBase"]
[SourceQuality "1"]
[TimeControl "5400+30"]

1. d4 {[%emt 0:00:00]} Nf6 {[%emt 0:00:00]} 2. c4 {[%emt 0:00:00]} e6 {[%emt 0:00:08]} 3. Nc3 {[%emt 0:00:00]} Bb4 {[%emt 0:00:15]} 4. e3 {[%emt 0:00:00]} O-O {[%emt 0:00:26]} 5. Nge2 {[%emt 0:00:00]} b6 {[%emt 0:00:18]} 6. f3 {[%emt 0:02:54]} d5 {[%emt 0:00:45]} 7. cxd5 exd5 {[%emt 0:01:47]} 8. Ng3 {[%emt 0:06:10]} c5 {[%emt 0:01:35]} 9. a3 {[%emt 0:07:55]} cxd4 {[%emt 0:08:15]} 10. exd4 {[%emt 0:02:49]} Bd6 {[%emt 0:01:02]} 11. Bd3 {[%emt 0:02:22]} Nh5 {[%emt 0:09:43]} 12. Nxh5 {[%emt 0:07:06]} Qh4+ {[%emt 0:00:15]} 13. g3 {[%emt 0:00:04]} Qxh5 {[%emt 0:06:20]} 14. Kf2 {[%emt 0:00:21]} Nc6 {[%emt 0:06:49]} 15. Ne2 {[%emt 0:02:46]} Re8 {[%emt 0:08:47]} 16. Bb5 {[%emt 0:09:49]} Bd7 {[%emt 0:03:27]} 17. Bf4 {[%emt 0:03:15]} Rxe2+ {[%emt 0:03:12]} 18. Bxe2 {[%emt 0:18:58]} Bxf4 {[%emt 0:00:53]} 19. gxf4 {[%emt 0:01:45]} Qh4+ {[%emt 0:01:02]} 20. Kg1 {[%emt 0:00:12]} Qxf4 {[%emt 0:01:08]} 21. Rc1 {[%emt 0:13:20]} Bh3 {[%emt 0:05:12]} 22. Rc3 {[%emt 0:01:41]} Re8 {[%emt 0:00:40]} 23. Bf1 {[%emt 0:10:31]} Qg5+ {[%emt 0:01:04]} 24. Kf2 {[%emt 0:00:07]} Qh4+ {[%emt 0:00:05]} 25. Kg1 {[%emt 0:00:04]} Re1 {[%emt 0:00:39]} 0-1

[Event "1st Gujarat GM Open 2018"]
[Site "Ahmedabad"]
[Date "2018.10.07"]
[Round "4"]
[White "Ziatdinov, Raset"]
[Black "Gandhi, Anish"]
[Result "0-1"]
[ECO "B95"]
[WhiteElo "2265"]
[BlackElo "2042"]
[Annotator "NA"]
[PlyCount "54"]
[EventDate "2018.10.05"]
[EventType "swiss"]
[EventCountry "IND"]
[SourceTitle "playchess.com"]
[Source "ChessBase"]
[SourceQuality "1"]
[TimeControl "5400+30"]

1. e4 {[%emt 0:00:03]} c5 {[%emt 0:00:00]} 2. Nf3 {[%emt 0:00:17]} d6 {[%emt 0:00:00]} 3. d4 {[%emt 0:00:06]} cxd4 {[%emt 0:00:00]} 4. Nxd4 {[%emt 0:00:03]} Nf6 {[%emt 0:00:00]} 5. Nc3 {[%emt 0:00:04]} a6 {[%emt 0:00:00]} 6. Bg5 {[%emt 0:00:13]} e6 {[%emt 0:00:02]} 7. Qe2 {[%emt 0:00:12]} Be7 {[%emt 0:02:11]} 8. h4 {[%emt 0:00:06]} b5 {[%emt 0:02:48]} 9. g4 {[%emt 0:02:34]} b4 {[%emt 0:06:15]} 10. Nd1 {[%emt 0:01:57]} Bb7 {[%emt 0:01:31]} 11. Bg2 {[%emt 0:00:14]} Nc6 {[%emt 0:03:19]} 12. Nxc6 {[%emt 0:10:57]} Bxc6 {[%emt 0:00:06]} 13. Bxf6 {[%emt 0:01:29]} Bxf6 {[%emt 0:01:33]} 14. Qd2 {[%emt 0:00:57]} Bxh4 {[%emt 0:06:50]} 15. Qxb4 {[%emt 0:02:48]} Bg5 {[%emt 0:02:15]} 16. Qc3 {[%emt 0:03:09]} Rc8 {[%emt 0:08:32]} 17. Qxg7 {[%emt 0:00:47]} Bf6 {[%emt 0:01:01]} 18. Qh6 {[%emt 0:00:07]} Bg5 {[%emt 0:18:57]} 19. Qh5 {[%emt 0:01:59]} Qf6 {[%emt 0:08:33]} 20. Rh3 {[%emt 0:04:16]} Bb5 {[%emt 0:04:31]} 21. Nc3 {[%emt 0:01:15]} Bd2+ {[%emt 0:06:20]} 22. Kxd2 {[%emt 0:09:24]} Qxf2+ {[%emt 0:00:58]} 23. Kc1 {[%emt 0:03:01]} Qe1+ {[%emt 0:04:17]} 24. Nd1 {[%emt 0:00:33]} Be2 {[%emt 0:00:28]} 25. Rh1 {[%emt 0:00:37]} Bd3 {[%emt 0:00:25]} 26. Qh3 {[%emt 0:03:09]} Rxc2+ {[%emt 0:01:01]} 27. Kb1 {[%emt 0:00:06]} Qd2 {[%emt 0:00:12]} 0-1

[Event "1st Gujarat GM Open 2018"]
[Site "Ahmedabad"]
[Date "2018.10.07"]
[Round "4"]
[White "Ritviz, Parab"]
[Black "Jayachandra Srinivas Vellanki"]
[Result "1-0"]
[ECO "C13"]
[WhiteElo "2252"]
[BlackElo "2011"]
[Annotator "NA"]
[PlyCount "71"]
[EventDate "2018.10.05"]
[EventType "swiss"]
[EventCountry "IND"]
[SourceTitle "playchess.com"]
[Source "ChessBase"]
[SourceQuality "1"]
[TimeControl "5400+30"]

1. e4 {[%emt 0:00:00]} e6 {[%emt 0:01:37]} 2. d4 {[%emt 0:00:00]} d5 {[%emt 0:00:07]} 3. Nc3 {[%emt 0:00:00]} Nf6 {[%emt 0:00:11]} 4. Bg5 {[%emt 0:00:31]} Be7 {[%emt 0:01:06]} 5. e5 {[%emt 0:00:12]} Nfd7 {[%emt 0:00:04]} 6. h4 {[%emt 0:01:10]} Nc6 {[%emt 0:02:00]} 7. f4 {[%emt 0:03:08]} Nb6 {[%emt 0:03:11]} 8. Nf3 {[%emt 0:01:02]} Bd7 {[%emt 0:04:02]} 9. Qd2 {[%emt 0:04:25]} h6 {[%emt 0:02:24]} 10. Bxe7 {[%emt 0:02:53]} Qxe7 {[%emt 0:00:02]} 11. h5 {[%emt 0:00:51]} O-O-O {[%emt 0:00:31]} 12. a3 {[%emt 0:17:09]} Kb8 {[%emt 0:02:32]} 13. g4 {[%emt 0:00:59]} Rc8 {[%emt 0:01:04]} 14. b4 {[%emt 0:14:51]} a5 {[%emt 0:11:35]} 15. Na2 {[%emt 0:14:01]} a4 {[%emt 0:01:53]} 16. Bd3 {[%emt 0:00:41]} Nc4 {[%emt 0:05:10]} 17. Bxc4 {[%emt 0:01:41]} dxc4 {[%emt 0:00:04]} 18. Qe2 {[%emt 0:03:51]} Na7 {[%emt 0:06:23]} 19. Qxc4 {[%emt 0:02:20]} Bc6 {[%emt 0:00:24]} 20. Kf2 {[%emt 0:01:10]} f6 {[%emt 0:01:06]} 21. Nc3 {[%emt 0:01:35]} b5 {[%emt 0:01:11]} 22. Qc5 {[%emt 0:09:49]} Qf7 {[%emt 0:01:08]} 23. exf6 {[%emt 0:05:04]} Qxf6 {[%emt 0:00:53]} 24. Qe5 {[%emt 0:01:10]} Qxe5 {[%emt 0:01:22]} 25. dxe5 {[%emt 0:00:28]} Bxf3 {[%emt 0:00:35]} 26. Kxf3 {[%emt 0:00:05]} c5 {[%emt 0:00:04]} 27. bxc5 {[%emt 0:04:49]} Rxc5 {[%emt 0:00:17]} 28. Ne4 {[%emt 0:00:43]} Rxc2 {[%emt 0:00:27]} 29. Rhd1 {[%emt 0:00:06]} Rhc8 {[%emt 0:00:55]} 30. Rab1 {[%emt 0:00:51]} Ra2 {[%emt 0:01:24]} 31. Rd3 {[%emt 0:00:33]} Rcc2 {[%emt 0:00:37]} 32. f5 {[%emt 0:01:00]} exf5 {[%emt 0:06:27]} 33. gxf5 {[%emt 0:00:02]} Rh2 {[%emt 0:01:40]} 34. e6 {[%emt 0:00:31]} Rxh5 {[%emt 0:00:33]} 35. Ng3 {[%emt 0:00:16]} Rhh2 {[%emt 0:00:58]} 36. e7 {[%emt 0:00:14]} 1-0

[Event "1st Gujarat GM Open 2018"]
[Site "Ahmedabad"]
[Date "2018.10.07"]
[Round "4"]
[White "Ahmed, Sk. Nasir"]
[Black "Shiva Pavan Teja Sharma U"]
[Result "1/2-1/2"]
[ECO "B10"]
[WhiteElo "2234"]
[BlackElo "2005"]
[Annotator "NA"]
[PlyCount "106"]
[EventDate "2018.10.05"]
[EventType "swiss"]
[EventCountry "IND"]
[SourceTitle "playchess.com"]
[Source "ChessBase"]
[SourceQuality "1"]
[TimeControl "5400+30"]

1. e4 {[%emt 0:00:00]} c6 {[%emt 0:00:00]} 2. c4 {[%emt 0:00:07]} d5 {[%emt 0:06:49]} 3. exd5 {[%emt 0:00:08]} cxd5 {[%emt 0:00:06]} 4. cxd5 {[%emt 0:00:10]} Nf6 {[%emt 0:00:09]} 5. Nf3 {[%emt 0:03:01]} Nxd5 {[%emt 0:01:08]} 6. Bc4 {[%emt 0:00:40]} e6 {[%emt 0:01:39]} 7. O-O {[%emt 0:00:29]} Be7 {[%emt 0:00:13]} 8. Nc3 {[%emt 0:00:22]} O-O {[%emt 0:01:06]} 9. d4 {[%emt 0:00:32]} Nxc3 {[%emt 0:05:17]} 10. bxc3 {[%emt 0:00:03]} Qc7 {[%emt 0:02:37]} 11. Qd3 {[%emt 0:02:21]} Nd7 {[%emt 0:03:05]} 12. Bb3 {[%emt 0:01:01]} b6 {[%emt 0:07:16]} 13. Re1 {[%emt 0:09:58]} Bb7 {[%emt 0:04:46]} 14. Bd2 {[%emt 0:13:33]} Rac8 {[%emt 0:04:17]} 15. Bc2 {[%emt 0:05:47]} g6 {[%emt 0:03:50]} 16. Bb3 {[%emt 0:04:17]} Bd6 {[%emt 0:01:31]} 17. h3 {[%emt 0:04:09]} Bf4 {[%emt 0:03:56]} 18. Bxf4 {[%emt 0:00:55]} Qxf4 {[%emt 0:00:09]} 19. Ne5 {[%emt 0:05:20]} Nxe5 {[%emt 0:05:01]} 20. Rxe5 {[%emt 0:00:17]} Rfd8 {[%emt 0:00:55]} 21. Rae1 {[%emt 0:00:28]} Rc7 {[%emt 0:06:25]} 22. g3 {[%emt 0:23:50]} Qf3 {[%emt 0:02:44]} 23. Qxf3 {[%emt 0:00:27]} Bxf3 {[%emt 0:00:07]} 24. R1e3 {[%emt 0:00:37]} Bb7 {[%emt 0:00:55]} 25. g4 {[%emt 0:06:27]} Kg7 {[%emt 0:02:08]} 26. f4 {[%emt 0:03:04]} Rdc8 {[%emt 0:11:01]} 27. c4 {[%emt 0:01:00]} Rd8 {[%emt 0:00:44]} 28. d5 {[%emt 0:00:17]} exd5 {[%emt 0:00:20]} 29. cxd5 {[%emt 0:00:02]} Rcd7 {[%emt 0:01:40]} 30. Re7 {[%emt 0:11:07]} Bxd5 {[%emt 0:03:23]} 31. Bxd5 {[%emt 0:00:03]} Rxd5 {[%emt 0:02:11]} 32. Rxa7 {[%emt 0:00:03]} Rd4 {[%emt 0:00:45]} 33. f5 {[%emt 0:00:27]} gxf5 {[%emt 0:03:23]} 34. Ree7 {[%emt 0:00:18]} Rf8 {[%emt 0:01:31]} 35. gxf5 {[%emt 0:00:18]} Rd5 {[%emt 0:00:15]} 36. Reb7 {[%emt 0:00:36]} Rxf5 {[%emt 0:00:32]} 37. Rxb6 {[%emt 0:00:04]} Rc8 {[%emt 0:00:36]} 38. Rb2 {[%emt 0:00:38]} Rc3 {[%emt 0:01:34]} 39. Rg2+ {[%emt 0:04:05]} Kh6 {[%emt 0:02:39]} 40. Rf2 {[%emt 0:00:21]} Rxf2 {[%emt 0:00:25]} 41. Kxf2 {[%emt 0:00:02]} Rxh3 {[%emt 0:00:30]} 42. Rxf7 {[%emt 0:00:30]} Rh2+ {[%emt 0:00:30]} 43. Kg3 {[%emt 0:00:30]} Rxa2 {[%emt 0:00:00]} 44. Rf5 {[%emt 0:00:00]} Kg6 {[%emt 0:00:27]} 45. Rb5 {[%emt 0:00:00]} Ra6 {[%emt 0:00:13]} 46. Kg4 {[%emt 0:00:00]} h5+ {[%emt 0:01:02]} 47. Kh4 {[%emt 0:00:00]} Ra4+ {[%emt 0:00:09]} 48. Kh3 {[%emt 0:00:00]} Ra3+ {[%emt 0:00:39]} 49. Kh4 {[%emt 0:00:00]} Ra4+ {[%emt 0:00:16]} 50. Kh3 {[%emt 0:00:00]} Re4 {[%emt 0:00:30]} 51. Ra5 {[%emt 0:00:29]} Rf4 {[%emt 0:00:13]} 52. Rb5 {[%emt 0:00:00]} Rf5 {[%emt 0:00:30]} 53. Rxf5 {[%emt 0:00:00]} Kxf5 {[%emt 0:00:00]} 1/2-1/2

[Event "1st Gujarat GM Open 2018"]
[Site "Ahmedabad"]
[Date "2018.10.07"]
[Round "4"]
[White "Sahil, Tickoo"]
[Black "Fominyh, Alexander"]
[Result "1/2-1/2"]
[ECO "A45"]
[WhiteElo "2217"]
[BlackElo "2405"]
[Annotator "ChessBase"]
[PlyCount "140"]
[EventDate "2018.10.05"]
[EventType "swiss"]
[EventCountry "IND"]
[SourceTitle "playchess.com"]
[Source "ChessBase"]
[SourceQuality "1"]
[TimeControl "5400+30"]

1. d4 {[%emt 1:30:30]} Nf6 {[%emt 1:30:30]} 2. Bf4 {[%emt 0:00:30]} g6 {[%emt 0:00:00]} 3. Nc3 {[%emt 0:00:00]} d5 {[%emt 0:00:00]} 4. e3 {[%emt 0:00:00]} Bg7 {[%emt 0:00:00]} 5. h4 {[%emt 0:00:00]} c5 {[%emt 0:00:00]} 6. Nb5 {[%emt 0:00:00]} Na6 {[%emt 0:00:00]} 7. c3 {[%emt 0:00:00]} Bg4 {[%emt 0:00:00]} 8. Nf3 {[%emt 0:00:00]} O-O {[%emt 0:00:00]} 9. Be2 {[%emt 0:00:00]} Qb6 {[%emt 0:00:00]} 10. a4 {[%emt 0:00:00]} c4 {[%emt 0:00:00]} 11. b3 {[%emt 0:00:00]} cxb3 {[%emt 0:00:00]} 12. Qxb3 {[%emt 0:00:00]} Rfc8 {[%emt 0:00:00]} 13. O-O {[%emt 0:00:00]} Qd8 {[%emt 0:00:00]} 14. Na3 {[%emt 0:00:00]} Nc7 {[%emt 0:00:00]} 15. c4 {[%emt 0:00:00]} b6 {[%emt 0:00:00]} 16. Rfc1 {[%emt 0:00:00]} e6 {[%emt 0:00:00]} 17. a5 {[%emt 0:00:00]} dxc4 {[%emt 0:00:00]} 18. Nxc4 {[%emt 0:00:00]} Ncd5 {[%emt 0:00:00]} 19. axb6 {[%emt 0:00:00]} Nxf4 {[%emt 0:00:00]} 20. exf4 {[%emt 0:00:00]} axb6 {[%emt 0:00:00]} 21. Rxa8 {[%emt 0:00:00]} Rxa8 {[%emt 0:00:00]} 22. Qxb6 {[%emt 0:00:00]} Nd5 {[%emt 0:00:00]} 23. Qxd8+ {[%emt 0:00:00]} Rxd8 {[%emt 0:00:00]} 24. g3 {[%emt 0:00:00]} Rc8 {[%emt 0:00:00]} 25. Kg2 {[%emt 0:03:50]} Bxf3+ {[%emt 0:00:00]} 26. Kxf3 {[%emt 0:02:35]} Bxd4 {[%emt 0:00:00]} 27. Rd1 {[%emt 0:01:06]} Ba7 {[%emt 0:00:00]} 28. Ne3 {[%emt 0:02:16]} Nf6 {[%emt 0:00:00]} 29. Rd3 {[%emt 0:02:03]} h5 {[%emt 0:00:00]} 30. Kg2 {[%emt 0:00:48]} Kg7 {[%emt 0:00:00]} 31. Bf3 {[%emt 0:00:15]} Rc7 {[%emt 0:00:00]} 32. Rb3 {[%emt 0:00:18]} Rc1 {[%emt 0:00:00]} 33. Rd3 {[%emt 0:00:43]} Ng8 {[%emt 0:00:00]} 34. Ra3 {[%emt 0:00:53]} Bc5 {[%emt 0:00:00]} 35. Ra2 {[%emt 0:00:56]} Nh6 {[%emt 0:00:00]} 36. Re2 {[%emt 0:00:26]} Ra1 {[%emt 0:00:00]} 37. Be4 {[%emt 0:00:33]} Ng8 {[%emt 0:00:00]} 38. Bf3 {[%emt 0:00:09]} Nf6 {[%emt 0:00:00]} 39. Nc4 {[%emt 0:00:37]} Rc1 {[%emt 0:00:18]} 40. Ne5 {[%emt 0:00:46]} Rc3 {[%emt 0:01:01]} 41. Rb2 {[%emt 0:00:32]} Bd6 {[%emt 0:01:21]} 42. Rb7 {[%emt 0:00:35]} Bxe5 {[%emt 0:01:00]} 43. fxe5 {[%emt 0:00:01]} Ng8 {[%emt 0:00:10]} 44. Rb2 {[%emt 0:01:02]} Nh6 {[%emt 0:00:46]} 45. Be4 {[%emt 0:00:32]} Rc5 {[%emt 0:03:01]} 46. f4 {[%emt 0:00:11]} Rc3 {[%emt 0:00:14]} 47. Re2 {[%emt 0:00:40]} Ng4 {[%emt 0:00:28]} 48. Bf3 {[%emt 0:00:12]} Ne3+ {[%emt 0:00:08]} 49. Kf2 {[%emt 0:00:29]} Nf5 {[%emt 0:00:07]} 50. Kg2 {[%emt 0:00:26]} Kf8 {[%emt 0:00:33]} 51. Ra2 {[%emt 0:00:52]} Kg7 {[%emt 0:00:28]} 52. Rd2 {[%emt 0:00:35]} Rb3 {[%emt 0:02:03]} 53. Rf2 {[%emt 0:00:24]} Ne3+ {[%emt 0:00:25]} 54. Kh2 {[%emt 0:00:33]} f6 {[%emt 0:00:49]} 55. exf6+ {[%emt 0:00:08]} Kxf6 {[%emt 0:00:06]} 56. Ra2 {[%emt 0:00:58]} Rc3 {[%emt 0:01:05]} 57. Kg1 {[%emt 0:00:33]} Nf5 {[%emt 0:02:20]} 58. Kf2 {[%emt 0:00:29]} Rb3 {[%emt 0:00:04]} 59. Rd2 {[%emt 0:00:23]} Ke7 {[%emt 0:01:07]} 60. Ra2 {[%emt 0:00:34]} Kd6 {[%emt 0:00:15]} 61. Ra6+ {[%emt 0:00:31]} Ke7 {[%emt 0:01:28]} 62. Ra2 {[%emt 0:00:12]} Rc3 {[%emt 0:00:41]} 63. Ra7+ {[%emt 0:00:31]} Kf6 {[%emt 0:00:06]} 64. Ra2 {[%emt 0:00:08]} Rb3 {[%emt 0:00:20]} 65. Rd2 {[%emt 0:00:23]} e5 {[%emt 0:00:54]} 66. fxe5+ {[%emt 0:00:26]} Kxe5 {[%emt 0:00:06]} 67. Rd5+ {[%emt 0:00:40]} Kf6 {[%emt 0:00:14]} 68. Rd2 {[%emt 0:00:06]} Rc3 {[%emt 0:01:07]} 69. Ra2 {[%emt 0:00:54]} Ke5 {[%emt 0:01:40]} 70. Re2+ {[%emt 0:01:07]} Kf6 1/2-1/2

[Event "1st Gujarat GM Open 2018"]
[Site "Ahmedabad"]
[Date "2018.10.07"]
[Round "4"]
[White "Deshpande, Aniruddha"]
[Black "Deota Snehil S"]
[Result "1-0"]
[ECO "E04"]
[WhiteElo "2213"]
[BlackElo "1929"]
[Annotator "NA"]
[PlyCount "57"]
[EventDate "2018.10.05"]
[EventType "swiss"]
[EventCountry "IND"]
[SourceTitle "playchess.com"]
[Source "ChessBase"]
[SourceQuality "1"]
[TimeControl "5400+30"]

1. d4 {[%emt 0:00:00]} d5 {[%emt 0:00:38]} 2. c4 {[%emt 0:00:00]} e6 {[%emt 0:00:21]} 3. Nf3 {[%emt 0:00:05]} Nf6 {[%emt 0:00:15]} 4. g3 {[%emt 0:00:06]} dxc4 {[%emt 0:01:43]} 5. Bg2 {[%emt 0:00:22]} Nc6 {[%emt 0:00:18]} 6. O-O {[%emt 0:00:48]} Rb8 {[%emt 0:00:15]} 7. Nc3 {[%emt 0:00:41]} b5 {[%emt 0:01:22]} 8. e4 {[%emt 0:01:21]} b4 {[%emt 0:04:20]} 9. Ne2 {[%emt 0:03:03]} Be7 {[%emt 0:06:54]} 10. Qc2 {[%emt 0:09:10]} Ba6 {[%emt 0:00:14]} 11. Rd1 {[%emt 0:00:28]} O-O {[%emt 0:02:43]} 12. Ng5 {[%emt 0:06:35]} b3 {[%emt 0:02:17]} 13. Qb1 {[%emt 0:04:04]} h6 {[%emt 0:00:19]} 14. axb3 {[%emt 0:07:11]} Nb4 {[%emt 0:00:34]} 15. Nf3 {[%emt 0:04:53]} cxb3 {[%emt 0:00:13]} 16. Nc3 {[%emt 0:00:14]} c5 {[%emt 0:04:09]} 17. Bf4 {[%emt 0:09:20]} Rb7 {[%emt 0:05:42]} 18. dxc5 {[%emt 0:02:03]} Bd3 {[%emt 0:00:57]} 19. c6 {[%emt 0:05:56]} Rb6 {[%emt 0:02:08]} 20. c7 {[%emt 0:01:12]} Qd7 {[%emt 0:00:38]} 21. Ne5 {[%emt 0:01:09]} Bxb1 {[%emt 0:00:19]} 22. Nxd7 {[%emt 0:00:20]} Bc2 {[%emt 0:04:57]} 23. Nxf8 {[%emt 0:03:35]} Rc6 {[%emt 0:00:02]} 24. Rd8 {[%emt 0:00:41]} Rxc7 {[%emt 0:00:07]} 25. Bxc7 {[%emt 0:00:13]} Bxd8 {[%emt 0:00:10]} 26. Bxd8 {[%emt 0:00:13]} Kxf8 {[%emt 0:00:04]} 27. Bxf6 {[%emt 0:00:44]} gxf6 {[%emt 0:00:04]} 28. Rxa7 {[%emt 0:00:07]} Nd3 {[%emt 0:00:03]} 29. Na4 1-0

[Event "1st Gujarat GM Open 2018"]
[Site "Ahmedabad"]
[Date "2018.10.07"]
[Round "4"]
[White "Parnali, S Dharia"]
[Black "Polakhare Aryan"]
[Result "0-1"]
[ECO "A45"]
[WhiteElo "2211"]
[BlackElo "1920"]
[Annotator "NA"]
[PlyCount "40"]
[EventDate "2018.10.05"]
[EventType "swiss"]
[EventCountry "IND"]
[SourceTitle "playchess.com"]
[Source "ChessBase"]
[SourceQuality "1"]
[TimeControl "5400+30"]

1. d4 {[%emt 0:00:00]} Nf6 {[%emt 0:01:02]} 2. g3 {[%emt 0:00:05]} e6 {[%emt 0:00:18]} 3. c4 {[%emt 0:00:05]} Bb4+ {[%emt 0:00:10]} 4. Bd2 {[%emt 0:00:07]} Bxd2+ {[%emt 0:00:05]} 5. Nxd2 {[%emt 0:00:45]} d6 {[%emt 0:00:12]} 6. Bg2 {[%emt 0:00:12]} e5 {[%emt 0:00:12]} 7. Ngf3 {[%emt 0:01:23]} Qe7 {[%emt 0:00:25]} 8. Qb3 {[%emt 0:03:29]} O-O {[%emt 0:03:45]} 9. O-O {[%emt 0:01:41]} c6 {[%emt 0:22:07]} 10. dxe5 {[%emt 0:04:41]} dxe5 {[%emt 0:00:07]} 11. Rad1 {[%emt 0:00:35]} Nbd7 {[%emt 0:08:22]} 12. Qc3 {[%emt 0:00:59]} Re8 {[%emt 0:01:18]} 13. Ng5 {[%emt 0:04:16]} Nc5 {[%emt 0:06:16]} 14. b4 {[%emt 0:00:47]} Ne6 {[%emt 0:03:45]} 15. Nxe6 {[%emt 0:00:25]} Bxe6 {[%emt 0:04:55]} 16. a3 {[%emt 0:01:28]} Bg4 {[%emt 0:00:09]} 17. Bf3 {[%emt 0:01:14]} e4 {[%emt 0:01:43]} 18. Bxg4 {[%emt 0:03:27]} Nxg4 {[%emt 0:00:49]} 19. f3 {[%emt 0:01:13]} exf3 {[%emt 0:01:43]} 20. Rxf3 {[%emt 0:00:21]} Qxe2 {[%emt 0:01:14]} 0-1